[Event "Live Chess"]
[Site "Chess.com"]
[Date "2023.05.21"]
[Round "-"]
[White "KeithArkell"]
[Black "GMHarry-youtube"]
[Result "1/2-1/2"]
[WhiteElo "2604"]
[BlackElo "2042"]
[TimeControl "300"]
[EndTime "17:32:20 PDT"]
[Termination "Game drawn by repetition"]

1. d4 {[%clk 0:04:57.7]} 1... Nf6 {[%clk 0:04:59.2]} 2. Nf3 {[%clk 0:04:56.6]}
2... g6 {[%clk 0:04:58.5]} 3. c4 {[%clk 0:04:56]} 3... Bg7 {[%clk 0:04:57.1]} 4.
g3 {[%clk 0:04:55.5]} 4... O-O {[%clk 0:04:55.9]} 5. Bg2 {[%clk 0:04:54.9]} 5...
d5 {[%clk 0:04:55.4]} 6. cxd5 {[%clk 0:04:53.7]} 6... Nxd5 {[%clk 0:04:55.3]} 7.
Nc3 {[%clk 0:04:53.1]} 7... Nxc3 {[%clk 0:04:54.7]} 8. bxc3 {[%clk 0:04:53]}
8... c5 {[%clk 0:04:54.2]} 9. O-O {[%clk 0:04:52.4]} 9... Nc6 {[%clk 0:04:51.3]}
10. e3 {[%clk 0:04:51.5]} 10... cxd4 {[%clk 0:04:43.2]} 11. cxd4 {[%clk
0:04:50.5]} 11... e5 {[%clk 0:04:42.4]} 12. dxe5 {[%clk 0:04:48.2]} 12... Nxe5
{[%clk 0:04:41.7]} 13. Nxe5 {[%clk 0:04:47.4]} 13... Bxe5 {[%clk 0:04:39.5]} 14.
Rb1 {[%clk 0:04:46.6]} 14... Rb8 {[%clk 0:04:31.9]} 15. Ba3 {[%clk 0:04:42.8]}
15... Re8 {[%clk 0:04:26.5]} 16. Qxd8 {[%clk 0:04:39.8]} 16... Rxd8 {[%clk
0:04:26.4]} 17. Rfc1 {[%clk 0:04:32.8]} 17... b6 {[%clk 0:04:21.3]} 18. f4
{[%clk 0:04:31.6]} 18... Bf6 {[%clk 0:04:19.4]} 19. Rc7 {[%clk 0:04:28.9]} 19...
Rd7 {[%clk 0:04:13.5]} 20. Rbc1 {[%clk 0:04:20.1]} 20... Rxc7 {[%clk 0:04:08.4]}
21. Rxc7 {[%clk 0:04:19.6]} 21... a5 {[%clk 0:03:55.2]} 22. Bd5 {[%clk 0:04:16]}
22... Be6 {[%clk 0:03:51.8]} 23. Bxe6 {[%clk 0:04:15.1]} 23... fxe6 {[%clk
0:03:51]} 24. Bd6 {[%clk 0:04:11.2]} 24... Rd8 {[%clk 0:03:46.6]} 25. Rc6 {[%clk
0:04:08.1]} 25... b5 {[%clk 0:03:38.5]} 26. Kf2 {[%clk 0:04:04.7]} 26... Kf7
{[%clk 0:03:32.7]} 27. Ke2 {[%clk 0:04:03.7]} 27... Be7 {[%clk 0:03:31.7]} 28.
Bxe7 {[%clk 0:03:57.4]} 28... Kxe7 {[%clk 0:03:30.9]} 29. Rc5 {[%clk 0:03:56.7]}
29... Rd5 {[%clk 0:03:27.2]} 30. Rc7+ {[%clk 0:03:51]} 30... Rd7 {[%clk
0:03:25.2]} 31. Rc8 {[%clk 0:03:50.5]} 31... Rd8 {[%clk 0:03:17.6]} 32. Rc2
{[%clk 0:03:48.6]} 32... Rd6 {[%clk 0:03:02.5]} 33. e4 {[%clk 0:03:47]} 33...
Kd7 {[%clk 0:03:01.1]} 34. Rc5 {[%clk 0:03:42.7]} 34... Rd4 {[%clk 0:02:56.8]}
35. Ke3 {[%clk 0:03:37.8]} 35... Ra4 {[%clk 0:02:52.3]} 36. Rxb5 {[%clk
0:03:37]} 36... Rxa2 {[%clk 0:02:51.4]} 37. Rb7+ {[%clk 0:03:36.2]} 37... Kd6
{[%clk 0:02:49.6]} 38. Rxh7 {[%clk 0:03:35.1]} 38... Ra3+ {[%clk 0:02:48.7]} 39.
Kd4 {[%clk 0:03:33.8]} 39... Ra4+ {[%clk 0:02:47.6]} 40. Kd3 {[%clk 0:03:33]}
40... Ra3+ {[%clk 0:02:46.7]} 41. Ke2 {[%clk 0:03:32.3]} 41... Ra2+ {[%clk
0:02:45.9]} 42. Kf3 {[%clk 0:03:31.6]} 42... a4 {[%clk 0:02:37.6]} 43. Kg4
{[%clk 0:03:23.2]} 43... Kc6 {[%clk 0:02:30]} 44. Kg5 {[%clk 0:03:21.3]} 44...
Kb6 {[%clk 0:02:22.6]} 45. Rh8 {[%clk 0:03:19.2]} 45... Kb7 {[%clk 0:02:19.2]}
46. Rh7+ {[%clk 0:03:08.3]} 46... Kb6 {[%clk 0:02:18]} 47. Re7 {[%clk
0:03:07.5]} 47... Rxh2 {[%clk 0:02:11.7]} 48. Rxe6+ {[%clk 0:03:06.3]} 48... Kb5
{[%clk 0:02:11.1]} 49. Re8 {[%clk 0:03:03.7]} 49... a3 {[%clk 0:02:07.2]} 50.
Ra8 {[%clk 0:03:02.6]} 50... Kb4 {[%clk 0:02:02.8]} 51. g4 {[%clk 0:03:01.9]}
51... Rg2 {[%clk 0:02:01.3]} 52. e5 {[%clk 0:03:00.6]} 52... a2 {[%clk
0:01:59.1]} 53. e6 {[%clk 0:02:59]} 53... Kb3 {[%clk 0:01:58.3]} 54. Kxg6 {[%clk
0:02:52.1]} 54... Rxg4+ {[%clk 0:01:56]} 55. Kf5 {[%clk 0:02:51.3]} 55... Rg7
{[%clk 0:01:42.8]} 56. Kf6 {[%clk 0:02:48.8]} 56... Rg4 {[%clk 0:01:41.8]} 57.
f5 {[%clk 0:02:47.8]} 57... Ra4 {[%clk 0:01:40.5]} 58. Rb8+ {[%clk 0:02:34.9]}
58... Ka3 {[%clk 0:01:36.4]} 59. e7 {[%clk 0:02:33.8]} 59... a1=Q+ {[%clk
0:01:35.2]} 60. Kf7 {[%clk 0:02:31.1]} 60... Ra7 {[%clk 0:01:29.1]} 61. Rb6
{[%clk 0:02:15.1]} 61... Qe5 {[%clk 0:01:23.3]} 62. f6 {[%clk 0:02:11]} 62...
Qd5+ {[%clk 0:01:15.3]} 63. Kg7 {[%clk 0:01:59.4]} 63... Qg5+ {[%clk 0:01:09.6]}
64. Kf7 {[%clk 0:01:57.9]} 64... Qh5+ {[%clk 0:01:08.7]} 65. Kg7 {[%clk
0:01:50.7]} 65... Ra8 {[%clk 0:00:49.9]} 66. Re6 {[%clk 0:01:03.7]} 66... Qh8+
{[%clk 0:00:45.6]} 67. Kg6 {[%clk 0:01:02]} 67... Qg8+ {[%clk 0:00:44.8]} 68.
Kf5 {[%clk 0:01:01.1]} 68... Ra5+ {[%clk 0:00:43.5]} 69. Re5 {[%clk 0:00:58.8]}
69... Rxe5+ {[%clk 0:00:39.3]} 70. Kxe5 {[%clk 0:00:58.7]} 70... Qf7 {[%clk
0:00:38.3]} 71. Kd6 {[%clk 0:00:56.4]} 71... Qxf6+ {[%clk 0:00:34.9]} 72. Kd7
{[%clk 0:00:55.8]} 72... Qd4+ {[%clk 0:00:33.2]} 73. Ke6 {[%clk 0:00:55.1]}
73... Qe4+ {[%clk 0:00:32.2]} 74. Kd6 {[%clk 0:00:54.4]} 74... Qg6+ {[%clk
0:00:30.6]} 75. Kd7 {[%clk 0:00:53.6]} 75... Qf7 {[%clk 0:00:28.4]} 76. Kd8
{[%clk 0:00:52.6]} 76... Qd5+ {[%clk 0:00:27.1]} 77. Kc7 {[%clk 0:00:51.6]}
77... Qc5+ {[%clk 0:00:26.1]} 78. Kd7 {[%clk 0:00:50.8]} 78... Qd5+ {[%clk
0:00:21.9]} 79. Kc7 {[%clk 0:00:50.2]} 79... Qf7 {[%clk 0:00:16.5]} 80. Kd8
{[%clk 0:00:48.7]} 80... Qf6 {[%clk 0:00:14.4]} 81. Kd7 {[%clk 0:00:47.7]} 81...
Qd4+ {[%clk 0:00:12.7]} 82. Ke6 {[%clk 0:00:46.8]} 82... Qb6+ {[%clk 0:00:10]}
83. Kd7 {[%clk 0:00:45.7]} 83... Qb7+ {[%clk 0:00:09]} 84. Kd8 {[%clk
0:00:44.6]} 84... Qd5+ {[%clk 0:00:07.4]} 85. Kc7 {[%clk 0:00:43.6]} 1/2-1/2

[Event "Live Chess"]
[Site "Chess.com"]
[Date "2023.05.21"]
[Round "-"]
[White "nigelst"]
[Black "Doge_Dandolo"]
[Result "0-1"]
[WhiteElo "1794"]
[BlackElo "1961"]
[TimeControl "300"]
[EndTime "17:32:22 PDT"]
[Termination "Doge_Dandolo won on time"]

1. e4 {[%clk 0:04:58.4]} 1... c6 {[%clk 0:04:58.7]} 2. d4 {[%clk 0:04:55.6]}
2... d5 {[%clk 0:04:57.7]} 3. exd5 {[%clk 0:04:54.7]} 3... cxd5 {[%clk
0:04:56.6]} 4. Bd3 {[%clk 0:04:54.3]} 4... Nc6 {[%clk 0:04:55.6]} 5. c3 {[%clk
0:04:53.8]} 5... Qc7 {[%clk 0:04:53.7]} 6. Ne2 {[%clk 0:04:50.5]} 6... Bg4
{[%clk 0:04:52.2]} 7. f3 {[%clk 0:04:48.5]} 7... Bh5 {[%clk 0:04:51.4]} 8. Bf4
{[%clk 0:04:46.8]} 8... Qb6 {[%clk 0:04:47.2]} 9. Qb3 {[%clk 0:04:44.3]} 9... e6
{[%clk 0:04:41.3]} 10. O-O {[%clk 0:04:40]} 10... Nge7 {[%clk 0:04:39.2]} 11.
Qxb6 {[%clk 0:04:32.6]} 11... axb6 {[%clk 0:04:37.8]} 12. Na3 {[%clk 0:04:31.7]}
12... Bg6 {[%clk 0:04:35.9]} 13. Bxg6 {[%clk 0:04:29.7]} 13... Nxg6 {[%clk
0:04:34.4]} 14. Nb5 {[%clk 0:04:28.5]} 14... Kd7 {[%clk 0:04:28.6]} 15. Rfe1
{[%clk 0:04:14.9]} 15... Nxf4 {[%clk 0:04:26.7]} 16. Nxf4 {[%clk 0:04:13.6]}
16... g5 {[%clk 0:04:25.9]} 17. Nh5 {[%clk 0:04:08.3]} 17... Be7 {[%clk
0:04:22.1]} 18. Ng3 {[%clk 0:04:04.7]} 18... h5 {[%clk 0:04:17.2]} 19. Nf1
{[%clk 0:04:01]} 19... Ra5 {[%clk 0:04:15.1]} 20. a4 {[%clk 0:03:58.2]} 20...
Rha8 {[%clk 0:04:13.2]} 21. b3 {[%clk 0:03:56.6]} 21... Bf6 {[%clk 0:03:57.2]}
22. Ng3 {[%clk 0:03:51]} 22... h4 {[%clk 0:03:54.3]} 23. Nf1 {[%clk 0:03:47]}
23... Ne7 {[%clk 0:03:52.3]} 24. Ne3 {[%clk 0:03:36.5]} 24... Nc8 {[%clk
0:03:48.5]} 25. Ng4 {[%clk 0:03:34.7]} 25... Be7 {[%clk 0:03:46.8]} 26. Ne5+
{[%clk 0:03:31]} 26... Ke8 {[%clk 0:03:45.3]} 27. Nc7+ {[%clk 0:03:28.5]} 27...
Kf8 {[%clk 0:03:42.8]} 28. Nxa8 {[%clk 0:03:27.1]} 28... Rxa8 {[%clk 0:03:41.2]}
29. g3 {[%clk 0:03:22.2]} 29... Nd6 {[%clk 0:03:38.2]} 30. gxh4 {[%clk
0:03:20.5]} 30... gxh4 {[%clk 0:03:37.2]} 31. Kf2 {[%clk 0:03:14]} 31... Nf5
{[%clk 0:03:35.8]} 32. Nd7+ {[%clk 0:03:07.4]} 32... Ke8 {[%clk 0:03:33.8]} 33.
Nxb6 {[%clk 0:03:06.1]} 33... Bd8 {[%clk 0:03:31.6]} 34. a5 {[%clk 0:03:00.1]}
34... Bc7 {[%clk 0:03:30.3]} 35. Rg1 {[%clk 0:02:51.4]} 35... Ke7 {[%clk
0:03:20.7]} 36. Rg2 {[%clk 0:02:37.9]} 36... Bxb6 {[%clk 0:03:15.6]} 37. b4
{[%clk 0:02:28.8]} 37... Nxd4 {[%clk 0:03:09.8]} 38. Kf1 {[%clk 0:02:10.8]}
38... Nf5 {[%clk 0:03:05.1]} 39. Ke2 {[%clk 0:02:06.1]} 39... Bc7 {[%clk
0:02:58.7]} 40. Rag1 {[%clk 0:01:52.8]} 40... Be5 {[%clk 0:02:56.3]} 41. Kd3
{[%clk 0:01:50.2]} 41... Rc8 {[%clk 0:02:53.9]} 42. Rc1 {[%clk 0:01:44.4]} 42...
Bd6 {[%clk 0:02:42.6]} 43. b5 {[%clk 0:01:36.5]} 43... Rc5 {[%clk 0:02:39.1]}
44. Rb1 {[%clk 0:01:19.6]} 44... Be5 {[%clk 0:02:28.1]} 45. Ra2 {[%clk
0:01:04.7]} 45... Rxc3+ {[%clk 0:02:24]} 46. Ke2 {[%clk 0:00:56.6]} 46... Nd4+
{[%clk 0:02:15.1]} 47. Kf2 {[%clk 0:00:44.3]} 47... Rxf3+ {[%clk 0:02:10.1]} 48.
Kg2 {[%clk 0:00:43.1]} 48... h3+ {[%clk 0:02:02.4]} 49. Kg1 {[%clk 0:00:38.2]}
49... Rc3 {[%clk 0:01:49.9]} 50. a6 {[%clk 0:00:31.1]} 50... bxa6 {[%clk
0:01:47.4]} 51. bxa6 {[%clk 0:00:28.4]} 51... Nf3+ {[%clk 0:01:45.6]} 52. Kh1
{[%clk 0:00:21.3]} 52... Bd4 {[%clk 0:01:40.6]} 53. a7 {[%clk 0:00:15.8]} 53...
Bxa7 {[%clk 0:01:39.2]} 54. Rxa7+ {[%clk 0:00:13.3]} 54... Kf6 {[%clk
0:01:36.6]} 55. Rf1 {[%clk 0:00:11]} 55... Ke5 {[%clk 0:01:33.7]} 56. Ra2 {[%clk
0:00:09.4]} 56... f5 {[%clk 0:01:31.2]} 57. Re2+ {[%clk 0:00:07.9]} 57... Kf6
{[%clk 0:01:27.7]} 58. Ref2 {[%clk 0:00:06.9]} 58... e5 {[%clk 0:01:20.4]} 59.
Rxf3 {[%clk 0:00:05.3]} 59... Rxf3 {[%clk 0:01:18.8]} 60. Rxf3 {[%clk
0:00:03.8]} 60... e4 {[%clk 0:01:18.3]} 61. Rxh3 {[%clk 0:00:03.2]} 61... d4
{[%clk 0:01:17.7]} 62. Kg2 {[%clk 0:00:02.9]} 62... d3 {[%clk 0:01:13.5]} 63.
Kf2 {[%clk 0:00:01.7]} 63... Ke5 {[%clk 0:01:12.6]} 0-1

[Event "Live Chess"]
[Site "Chess.com"]
[Date "2023.05.21"]
[Round "-"]
[White "xx_blindpuffin_xx"]
[Black "LodeshChess"]
[Result "0-1"]
[WhiteElo "2197"]
[BlackElo "1156"]
[TimeControl "300"]
[EndTime "17:32:26 PDT"]
[Termination "LodeshChess won by checkmate"]

1. d4 {[%clk 0:04:58.6]} 1... Nf6 {[%clk 0:04:58.2]} 2. Bf4 {[%clk 0:04:57.4]}
2... c5 {[%clk 0:04:57]} 3. e3 {[%clk 0:04:56.1]} 3... Qb6 {[%clk 0:04:55.5]} 4.
Nc3 {[%clk 0:04:54.6]} 4... Qxb2 {[%clk 0:04:54.1]} 5. Nb5 {[%clk 0:04:53.7]}
5... Nd5 {[%clk 0:04:43.9]} 6. Bc4 {[%clk 0:04:18.8]} 6... Qb4+ {[%clk
0:04:30.1]} 7. Qd2 {[%clk 0:04:15.6]} 7... Qxc4 {[%clk 0:04:27]} 8. Nc7+ {[%clk
0:04:13.9]} 8... Nxc7 {[%clk 0:04:25.1]} 9. Bxc7 {[%clk 0:04:13.8]} 9... d6
{[%clk 0:04:16.3]} 10. Bxb8 {[%clk 0:04:10.8]} 10... Rxb8 {[%clk 0:04:15]} 11.
Nf3 {[%clk 0:04:09.8]} 11... g6 {[%clk 0:04:12.2]} 12. c3 {[%clk 0:03:44.6]}
12... Bg7 {[%clk 0:04:02.9]} 13. Rc1 {[%clk 0:03:37.9]} 13... cxd4 {[%clk
0:03:48.5]} 14. cxd4 {[%clk 0:03:35.3]} 14... Qa6 {[%clk 0:03:48]} 15. Ng1
{[%clk 0:03:12.4]} 15... O-O {[%clk 0:03:41.2]} 16. Ne2 {[%clk 0:03:11.3]} 16...
Bg4 {[%clk 0:03:39.9]} 17. f3 {[%clk 0:03:10]} 17... Bf5 {[%clk 0:03:35.4]} 18.
O-O {[%clk 0:03:08.9]} 18... Bd3 {[%clk 0:03:34.8]} 19. Rfe1 {[%clk 0:03:05.8]}
19... Bxe2 {[%clk 0:03:33.8]} 20. Rxe2 {[%clk 0:03:05.1]} 20... Rbc8 {[%clk
0:03:32.6]} 21. Rb1 {[%clk 0:03:03.2]} 21... b6 {[%clk 0:03:22.8]} 22. Qd1
{[%clk 0:02:59.4]} 22... Rc7 {[%clk 0:03:18.9]} 23. Reb2 {[%clk 0:02:57.2]}
23... Rfc8 {[%clk 0:03:11.9]} 24. h3 {[%clk 0:02:56.5]} 24... Rc3 {[%clk
0:02:48.5]} 25. Kf2 {[%clk 0:02:50.6]} 25... Qd3 {[%clk 0:02:38.6]} 26. Qxd3
{[%clk 0:02:45.2]} 26... Rxd3 {[%clk 0:02:36.5]} 27. Ke2 {[%clk 0:02:41.6]}
27... Rdc3 {[%clk 0:02:30.6]} 28. Kd2 {[%clk 0:02:40]} 28... h5 {[%clk
0:02:22.9]} 29. f4 {[%clk 0:02:38.6]} 29... Ra3 {[%clk 0:02:04.5]} 30. Rc1
{[%clk 0:02:30.5]} 30... Rxc1 {[%clk 0:02:03.4]} 31. Kxc1 {[%clk 0:02:30.4]}
31... Rxe3 {[%clk 0:02:01.6]} 32. Rd2 {[%clk 0:02:10]} 32... Re4 {[%clk
0:01:54]} 33. Kc2 {[%clk 0:02:05.7]} 33... Rxd4 {[%clk 0:01:49.7]} 34. Re2
{[%clk 0:02:04.9]} 34... e6 {[%clk 0:01:44.9]} 35. g3 {[%clk 0:02:04]} 35...
Rc4+ {[%clk 0:01:42.7]} 36. Kb3 {[%clk 0:02:01.1]} 36... Rc3+ {[%clk 0:01:35.7]}
37. Kb4 {[%clk 0:02:00.4]} 37... Rxg3 {[%clk 0:01:35.1]} 38. Kb5 {[%clk
0:01:59.6]} 38... Rxh3 {[%clk 0:01:30.3]} 39. Kc6 {[%clk 0:01:54.8]} 39... d5
{[%clk 0:01:27]} 40. Kb7 {[%clk 0:01:53.4]} 40... Ra3 {[%clk 0:01:25.4]} 41. Kc8
{[%clk 0:01:51.9]} 41... Ra5 {[%clk 0:00:59.7]} 42. Kd7 {[%clk 0:01:50.6]} 42...
d4 {[%clk 0:00:58]} 43. Ke7 {[%clk 0:01:49.6]} 43... Rd5 {[%clk 0:00:54.2]} 44.
Rd2 {[%clk 0:01:46]} 44... d3 {[%clk 0:00:50.9]} 45. Rd1 {[%clk 0:01:44.2]}
45... h4 {[%clk 0:00:50]} 46. a4 {[%clk 0:01:42.6]} 46... d2 {[%clk 0:00:48.2]}
47. Ke8 {[%clk 0:01:41.8]} 47... h3 {[%clk 0:00:45.3]} 48. f5 {[%clk 0:01:40.2]}
48... exf5 {[%clk 0:00:43.6]} 49. Ke7 {[%clk 0:01:38.7]} 49... h2 {[%clk
0:00:42.3]} 50. a5 {[%clk 0:01:34.6]} 50... bxa5 {[%clk 0:00:40.7]} 51. Rh1
{[%clk 0:01:22.8]} 51... d1=Q {[%clk 0:00:38.4]} 52. Rxd1 {[%clk 0:01:22.4]}
52... Rxd1 {[%clk 0:00:37.7]} 53. Ke8 {[%clk 0:01:22.2]} 53... h1=Q {[%clk
0:00:35.4]} 54. Ke7 {[%clk 0:01:21.3]} 54... Qe4# {[%clk 0:00:34.4]} 0-1

[Event "Live Chess"]
[Site "Chess.com"]
[Date "2023.05.21"]
[Round "-"]
[White "LutherSullivan"]
[Black "AlanPaling"]
[Result "1-0"]
[WhiteElo "2104"]
[BlackElo "1380"]
[TimeControl "300"]
[EndTime "17:32:35 PDT"]
[Termination "LutherSullivan won by resignation"]

1. e4 {[%clk 0:04:44.6]} 1... Nf6 {[%clk 0:04:57.7]} 2. e5 {[%clk 0:04:43.1]}
2... Nd5 {[%clk 0:04:56.5]} 3. Nc3 {[%clk 0:04:38.3]} 3... Nxc3 {[%clk
0:04:54.2]} 4. dxc3 {[%clk 0:04:37.7]} 4... d5 {[%clk 0:04:51.2]} 5. c4 {[%clk
0:04:34.8]} 5... d4 {[%clk 0:04:45.3]} 6. Nf3 {[%clk 0:04:29]} 6... c5 {[%clk
0:04:42.6]} 7. c3 {[%clk 0:04:09.8]} 7... Nc6 {[%clk 0:04:36]} 8. cxd4 {[%clk
0:04:02]} 8... cxd4 {[%clk 0:04:29.7]} 9. Bd3 {[%clk 0:03:58.1]} 9... Bg4 {[%clk
0:04:27.5]} 10. Bf4 {[%clk 0:03:54.9]} 10... e6 {[%clk 0:04:19.6]} 11. O-O
{[%clk 0:03:52.1]} 11... Bc5 {[%clk 0:04:04.3]} 12. a3 {[%clk 0:03:48.3]} 12...
a5 {[%clk 0:04:02.1]} 13. Be4 {[%clk 0:03:23]} 13... Qc7 {[%clk 0:03:50.3]} 14.
b4 {[%clk 0:02:45.8]} 14... axb4 {[%clk 0:03:47.3]} 15. axb4 {[%clk 0:02:43.1]}
15... Rxa1 {[%clk 0:03:42.9]} 16. Qxa1 {[%clk 0:02:40.7]} 16... Be7 {[%clk
0:03:20.3]} 17. Qa8+ {[%clk 0:02:29]} 17... Nd8 {[%clk 0:03:12.8]} 18. Qa4+
{[%clk 0:02:06.6]} 18... Qd7 {[%clk 0:03:08.5]} 19. Qxd7+ {[%clk 0:02:00.4]}
19... Kxd7 {[%clk 0:03:06.7]} 20. Nxd4 {[%clk 0:01:54.4]} 20... Bxb4 {[%clk
0:02:54]} 21. Rb1 {[%clk 0:01:43.9]} 21... Bc5 {[%clk 0:02:52.5]} 22. Nb3 {[%clk
0:01:38.5]} 22... b6 {[%clk 0:02:39.8]} 23. Nxc5+ {[%clk 0:01:33.3]} 23... bxc5
{[%clk 0:02:38.2]} 24. Be3 {[%clk 0:01:25.9]} 24... Be2 {[%clk 0:02:28.5]} 25.
Bxc5 {[%clk 0:01:19.4]} 25... Bxc4 {[%clk 0:02:25.2]} 26. Rd1+ {[%clk
0:01:15.1]} 26... Kc7 {[%clk 0:02:13.3]} 27. Bd6+ {[%clk 0:01:08.6]} 27... Kb6
{[%clk 0:02:06.8]} 28. Rb1+ {[%clk 0:01:05.8]} 28... Ka6 {[%clk 0:01:58.5]} 29.
Rb8 {[%clk 0:01:04.2]} 29... f5 {[%clk 0:01:51.2]} 30. exf6 {[%clk 0:01:00.3]}
30... gxf6 {[%clk 0:01:49.3]} 31. Be7 {[%clk 0:00:54.8]} 31... Nf7 {[%clk
0:01:47]} 32. Rxh8 {[%clk 0:00:52.8]} 32... Nxh8 {[%clk 0:01:45.2]} 33. Bxf6
{[%clk 0:00:52.2]} 33... Ng6 {[%clk 0:01:42.6]} 34. h4 {[%clk 0:00:46.6]} 34...
Bd5 {[%clk 0:01:41.2]} 35. Bd3+ {[%clk 0:00:42.9]} 35... Kb6 {[%clk 0:01:33]}
36. g3 {[%clk 0:00:41.4]} 36... h5 {[%clk 0:01:28]} 37. Bxg6 {[%clk 0:00:39.1]}
1-0

[Event "Live Chess"]
[Site "Chess.com"]
[Date "2023.05.21"]
[Round "-"]
[White "jimwad"]
[Black "grillage"]
[Result "0-1"]
[WhiteElo "1254"]
[BlackElo "1803"]
[TimeControl "300"]
[EndTime "17:32:58 PDT"]
[Termination "grillage won by resignation"]

1. d4 {[%clk 0:04:58]} 1... Nf6 {[%clk 0:04:57.8]} 2. c4 {[%clk 0:04:57]} 2...
e6 {[%clk 0:04:56.2]} 3. Nc3 {[%clk 0:04:56.2]} 3... Bb4 {[%clk 0:04:53.5]} 4.
Bd2 {[%clk 0:04:54.7]} 4... b6 {[%clk 0:04:50.1]} 5. Nf3 {[%clk 0:04:53.1]} 5...
Bb7 {[%clk 0:04:49.1]} 6. e3 {[%clk 0:04:52.1]} 6... d6 {[%clk 0:04:46.9]} 7.
Be2 {[%clk 0:04:49.6]} 7... O-O {[%clk 0:04:45.2]} 8. O-O {[%clk 0:04:48.7]}
8... Nbd7 {[%clk 0:04:42.7]} 9. Rc1 {[%clk 0:04:47.2]} 9... e5 {[%clk
0:04:39.7]} 10. a3 {[%clk 0:04:45.1]} 10... Bxc3 {[%clk 0:04:38.4]} 11. Bxc3
{[%clk 0:04:43.1]} 11... Re8 {[%clk 0:04:31.2]} 12. dxe5 {[%clk 0:04:41.5]}
12... Nxe5 {[%clk 0:04:26.6]} 13. Nxe5 {[%clk 0:04:38.1]} 13... dxe5 {[%clk
0:04:25.9]} 14. Qxd8 {[%clk 0:04:36.5]} 14... Raxd8 {[%clk 0:04:25.3]} 15. b3
{[%clk 0:04:29.3]} 15... c5 {[%clk 0:04:23.8]} 16. f3 {[%clk 0:04:18.4]} 16...
e4 {[%clk 0:04:17.1]} 17. f4 {[%clk 0:04:15.9]} 17... Re6 {[%clk 0:04:09.5]} 18.
Bg4 {[%clk 0:04:13.7]} 18... Red6 {[%clk 0:04:08]} 19. Rcd1 {[%clk 0:04:11.5]}
19... Nxg4 {[%clk 0:04:05.6]} 20. Rxd6 {[%clk 0:04:05.6]} 20... Rxd6 {[%clk
0:04:04.4]} 21. h3 {[%clk 0:04:04.7]} 21... Nxe3 {[%clk 0:04:02.7]} 0-1

[Event "Live Chess"]
[Site "Chess.com"]
[Date "2023.05.21"]
[Round "-"]
[White "domrobson"]
[Black "WelshTiger"]
[Result "0-1"]
[WhiteElo "1740"]
[BlackElo "2348"]
[TimeControl "300"]
[EndTime "17:33:39 PDT"]
[Termination "WelshTiger won by resignation"]

1. d4 {[%clk 0:04:58.3]} 1... Nf6 {[%clk 0:04:56.6]} 2. c4 {[%clk 0:04:57.5]}
2... c5 {[%clk 0:04:56]} 3. d5 {[%clk 0:04:56.5]} 3... e6 {[%clk 0:04:55.6]} 4.
Nc3 {[%clk 0:04:55.9]} 4... exd5 {[%clk 0:04:55.2]} 5. cxd5 {[%clk 0:04:55.3]}
5... d6 {[%clk 0:04:54.8]} 6. e4 {[%clk 0:04:54.7]} 6... g6 {[%clk 0:04:54.4]}
7. Be2 {[%clk 0:04:54.1]} 7... Bg7 {[%clk 0:04:53.2]} 8. Nf3 {[%clk 0:04:53.6]}
8... O-O {[%clk 0:04:51.7]} 9. O-O {[%clk 0:04:53.1]} 9... Ne8 {[%clk
0:04:36.5]} 10. Bf4 {[%clk 0:04:48.1]} 10... a6 {[%clk 0:04:32.3]} 11. a4 {[%clk
0:04:46.7]} 11... f5 {[%clk 0:04:30]} 12. e5 {[%clk 0:04:44.5]} 12... dxe5
{[%clk 0:04:23.5]} 13. Bxe5 {[%clk 0:04:42.8]} 13... Nf6 {[%clk 0:04:19.6]} 14.
Bc4 {[%clk 0:04:39.9]} 14... Nbd7 {[%clk 0:04:17.6]} 15. Re1 {[%clk 0:04:36.8]}
15... Nxe5 {[%clk 0:04:15.8]} 16. Nxe5 {[%clk 0:04:36.1]} 16... Qd6 {[%clk
0:04:12.5]} 17. Nf3 {[%clk 0:04:30.5]} 17... Bd7 {[%clk 0:04:08.7]} 18. Ne5
{[%clk 0:04:27.6]} 18... Rae8 {[%clk 0:04:04.6]} 19. Nxd7 {[%clk 0:04:26.2]}
19... Nxd7 {[%clk 0:04:03.4]} 20. Re6 {[%clk 0:04:17.6]} 20... Qf4 {[%clk
0:03:44.7]} 21. Qe2 {[%clk 0:04:07.1]} 21... Ne5 {[%clk 0:03:43.6]} 22. d6
{[%clk 0:03:57.4]} 22... Qxc4 {[%clk 0:03:33.2]} 23. Rxe5 {[%clk 0:03:46.3]}
23... Qxe2 {[%clk 0:03:31.2]} 24. Rxe2 {[%clk 0:03:44.6]} 24... Bxc3 {[%clk
0:03:13.7]} 25. Rxe8 {[%clk 0:03:42.7]} 25... Rxe8 {[%clk 0:03:10.7]} 26. bxc3
{[%clk 0:03:41.3]} 26... Rd8 {[%clk 0:03:08]} 27. Rd1 {[%clk 0:03:40.7]} 27...
Kf7 {[%clk 0:03:06.8]} 28. Rb1 {[%clk 0:03:35.4]} 28... Rd7 {[%clk 0:03:06.2]}
29. Rb6 {[%clk 0:03:32]} 29... Ke6 {[%clk 0:03:05.5]} 30. Kf1 {[%clk 0:03:26.9]}
30... Kd5 {[%clk 0:03:04.8]} 31. Ke2 {[%clk 0:03:24.4]} 31... Kc4 {[%clk
0:03:04.1]} 32. Kd2 {[%clk 0:03:21.5]} 32... g5 {[%clk 0:02:53.5]} 33. h3 {[%clk
0:03:17]} 33... h5 {[%clk 0:02:52]} 34. g3 {[%clk 0:03:15.9]} 34... f4 {[%clk
0:02:39.6]} 35. g4 {[%clk 0:03:11.5]} 35... h4 {[%clk 0:02:30]} 36. f3 {[%clk
0:03:09.5]} 36... Kd5 {[%clk 0:02:28.2]} 37. Kc2 {[%clk 0:03:04.9]} 37... c4
{[%clk 0:02:20]} 38. a5 {[%clk 0:02:57.3]} 38... Kc5 {[%clk 0:02:19.2]} 39. Kc1
{[%clk 0:02:49.2]} 39... Rxd6 {[%clk 0:02:15.9]} 40. Rxb7 {[%clk 0:02:48.2]}
40... Rd3 {[%clk 0:02:15.4]} 41. Rg7 {[%clk 0:02:46.8]} 41... Rxc3+ {[%clk
0:02:10.5]} 42. Kb2 {[%clk 0:02:44.8]} 42... Rxf3 {[%clk 0:02:10.1]} 43. Rxg5+
{[%clk 0:02:44.1]} 43... Kb4 {[%clk 0:02:09.5]} 44. Rf5 {[%clk 0:02:40.4]} 44...
Rf2+ {[%clk 0:02:05.7]} 45. Kc1 {[%clk 0:02:35.9]} 45... Kc3 {[%clk 0:02:04.7]}
46. Kd1 {[%clk 0:02:35]} 46... Kd3 {[%clk 0:02:01.7]} 47. Ke1 {[%clk 0:02:32.5]}
47... Rf3 {[%clk 0:02:00.3]} 48. g5 {[%clk 0:02:28.3]} 48... c3 {[%clk 0:01:59]}
49. Rd5+ {[%clk 0:02:25.1]} 49... Ke3 {[%clk 0:01:55.2]} 50. Rc5 {[%clk
0:02:23.9]} 50... Kd4 {[%clk 0:01:53.1]} 51. Rc6 {[%clk 0:02:20.8]} 51... Rg3
{[%clk 0:01:51.8]} 52. g6 {[%clk 0:02:17.1]} 52... Ke3 {[%clk 0:01:44.2]} 53.
Kd1 {[%clk 0:02:13.2]} 53... Kd3 {[%clk 0:01:39.5]} 54. Ke1 {[%clk 0:02:10.4]}
54... Rxh3 {[%clk 0:01:34.8]} 55. g7 {[%clk 0:02:00.8]} 55... Rg3 {[%clk
0:01:33.6]} 56. Rc7 {[%clk 0:01:58.6]} 56... h3 {[%clk 0:01:31.8]} 57. Kf2
{[%clk 0:01:50.9]} 57... h2 {[%clk 0:01:30.4]} 58. g8=Q {[%clk 0:01:49.8]} 58...
Rxg8 {[%clk 0:01:28.7]} 59. Rh7 {[%clk 0:01:48.8]} 59... c2 {[%clk 0:01:26.8]}
60. Rxh2 {[%clk 0:01:48.4]} 60... c1=Q {[%clk 0:01:25.2]} 61. Kf3 {[%clk
0:01:48.3]} 0-1